[Event "Late-Titled-Tuesday-Blitz-September-26-2023"]
[Site "Chess.com"]
[Date "2023.09.26"]
[Round "10"]
[White "karinachess1"]
[Black "Slovak_fighter2000"]
[Result "1-0"]
[WhiteElo "2618"]
[BlackElo "2460"]
[TimeControl "180+1"]
[EndTime "15:50:05 PDT"]
[Termination "karinachess1 won by resignation"]

1. d4 {[%clk 0:03:00.9]} 1... e6 {[%clk 0:02:56.1]} 2. c4 {[%clk 0:03:01.1]}
2... f5 {[%clk 0:02:51.9]} 3. Nf3 {[%clk 0:02:56.6]} 3... Nf6 {[%clk 0:02:51.9]}
4. g3 {[%clk 0:02:57.2]} 4... d5 {[%clk 0:02:51.8]} 5. Bg2 {[%clk 0:02:57]} 5...
Ne4 {[%clk 0:02:51.5]} 6. O-O {[%clk 0:02:57.4]} 6... Be7 {[%clk 0:02:41]} 7. b3
{[%clk 0:02:58]} 7... Nc6 {[%clk 0:02:34.8]} 8. Ba3 {[%clk 0:02:55.1]} 8... Bf6
{[%clk 0:02:34.4]} 9. e3 {[%clk 0:02:40.4]} 9... h5 {[%clk 0:02:29.8]} 10. Nbd2
{[%clk 0:02:22.9]} 10... h4 {[%clk 0:02:28.7]} 11. Nxe4 {[%clk 0:02:19.3]} 11...
fxe4 {[%clk 0:02:22.8]} 12. Nd2 {[%clk 0:02:19.6]} 12... Qd7 {[%clk 0:02:16.7]}
13. Qg4 {[%clk 0:02:15.9]} 13... Qf7 {[%clk 0:02:12.9]} 14. f4 {[%clk
0:01:59.3]} 14... e5 {[%clk 0:01:56.4]} 15. f5 {[%clk 0:01:59.6]} 15... exd4
{[%clk 0:01:46.7]} 16. cxd5 {[%clk 0:01:54.4]} 16... dxe3 {[%clk 0:01:35.5]} 17.
Nxe4 {[%clk 0:01:30.6]} 17... Ne5 {[%clk 0:01:04.9]} 18. Qe2 {[%clk 0:01:25.5]}
18... Bd7 {[%clk 0:00:53.4]} 19. Rac1 {[%clk 0:01:20.5]} 19... Qh5 {[%clk
0:00:41.9]} 20. Qxh5+ {[%clk 0:01:12.6]} 20... Rxh5 {[%clk 0:00:42.8]} 21. Rxc7
{[%clk 0:01:11.1]} 21... Rxf5 {[%clk 0:00:39.7]} 22. Nd6+ {[%clk 0:01:07.3]}
22... Kd8 {[%clk 0:00:38.1]} 23. Rxd7+ {[%clk 0:01:03.2]} 23... Kxd7 {[%clk
0:00:37.3]} 24. Nxf5 {[%clk 0:01:03.4]} 24... Nd3 {[%clk 0:00:27.3]} 25. Nxe3
{[%clk 0:00:46.3]} 25... Bd4 {[%clk 0:00:26.3]} 26. Rf7+ {[%clk 0:00:46.5]}
26... Ke8 {[%clk 0:00:20.5]} 27. Rf8+ {[%clk 0:00:46.8]} 27... Kd7 {[%clk
0:00:20.3]} 28. Bh3+ {[%clk 0:00:44.7]} 28... Kc7 {[%clk 0:00:19.6]} 29. d6+
{[%clk 0:00:41.9]} 29... Kc6 {[%clk 0:00:19.7]} 30. Rxa8 {[%clk 0:00:39.6]}
30... Bxe3+ {[%clk 0:00:20]} 31. Kg2 {[%clk 0:00:39.8]} 31... Ne1+ {[%clk
0:00:14.7]} 32. Kf1 {[%clk 0:00:39.6]} 32... Nc2 {[%clk 0:00:14.8]} 33. Rc8+
{[%clk 0:00:36.3]} 33... Kb6 {[%clk 0:00:08.9]} 34. Rxc2 {[%clk 0:00:35]} 1-0

[Event "Late-Titled-Tuesday-Blitz-September-26-2023"]
[Site "Chess.com"]
[Date "2023.09.26"]
[Round "10"]
[White "mitrabhaa"]
[Black "OparinGrigoriy"]
[Result "1/2-1/2"]
[WhiteElo "2855"]
[BlackElo "2980"]
[TimeControl "180+1"]
[EndTime "15:50:07 PDT"]
[Termination "Game drawn by repetition"]

1. Nf3 {[%clk 0:02:59.3]} 1... d5 {[%clk 0:02:59.8]} 2. c4 {[%clk 0:02:58.7]}
2... e6 {[%clk 0:02:58.9]} 3. e3 {[%clk 0:02:57.6]} 3... Nf6 {[%clk 0:02:59.4]}
4. b3 {[%clk 0:02:57.9]} 4... Bd6 {[%clk 0:02:59.7]} 5. Bb2 {[%clk 0:02:58.3]}
5... O-O {[%clk 0:03:00.5]} 6. g3 {[%clk 0:02:58.6]} 6... c5 {[%clk 0:02:56.7]}
7. Bg2 {[%clk 0:02:58.6]} 7... Nc6 {[%clk 0:02:55.9]} 8. O-O {[%clk 0:02:54.5]}
8... e5 {[%clk 0:02:51.4]} 9. cxd5 {[%clk 0:02:52.2]} 9... Nxd5 {[%clk
0:02:52.3]} 10. Nc3 {[%clk 0:02:52.1]} 10... Nxc3 {[%clk 0:02:47.6]} 11. Bxc3
{[%clk 0:02:52]} 11... Qe7 {[%clk 0:02:46]} 12. Qc2 {[%clk 0:02:50.3]} 12... Bd7
{[%clk 0:02:42.8]} 13. Qb2 {[%clk 0:02:47.2]} 13... Rac8 {[%clk 0:02:33.9]} 14.
Rfe1 {[%clk 0:02:42.4]} 14... Rfe8 {[%clk 0:02:29]} 15. d4 {[%clk 0:02:41.4]}
15... e4 {[%clk 0:02:27.9]} 16. dxc5 {[%clk 0:02:38.7]} 16... Bxc5 {[%clk
0:02:18.6]} 17. Nd4 {[%clk 0:02:38.7]} 17... Nb4 {[%clk 0:02:12.7]} 18. Red1
{[%clk 0:02:23.5]} 18... Nd3 {[%clk 0:02:07.8]} 19. Qd2 {[%clk 0:02:23.2]} 19...
Bg4 {[%clk 0:02:02.6]} 20. Rf1 {[%clk 0:02:21.7]} 20... Bxd4 {[%clk 0:01:24.1]}
21. Bxd4 {[%clk 0:02:15.3]} 21... Qe6 {[%clk 0:01:24]} 22. f3 {[%clk 0:02:08.1]}
22... exf3 {[%clk 0:01:24.9]} 23. Bxf3 {[%clk 0:02:07.2]} 23... Bxf3 {[%clk
0:01:25.3]} 24. Rxf3 {[%clk 0:02:08.1]} 24... Ne5 {[%clk 0:01:25.9]} 25. Rf4
{[%clk 0:02:06.6]} 25... Ng6 {[%clk 0:01:19.9]} 26. Rf2 {[%clk 0:02:05.4]} 26...
a6 {[%clk 0:01:18.3]} 27. Raf1 {[%clk 0:02:05]} 27... f6 {[%clk 0:01:18]} 28.
Qb4 {[%clk 0:02:05.2]} 28... Rc7 {[%clk 0:01:06.9]} 29. Rf5 {[%clk 0:01:59.3]}
29... Rec8 {[%clk 0:01:02.5]} 30. R5f2 {[%clk 0:01:47.3]} 30... Qe4 {[%clk
0:00:58]} 31. Qd6 {[%clk 0:01:39.8]} 31... h5 {[%clk 0:00:40.7]} 32. h3 {[%clk
0:01:32]} 32... Rc2 {[%clk 0:00:38.6]} 33. Kh2 {[%clk 0:01:25.3]} 33... Rxf2+
{[%clk 0:00:36.2]} 34. Rxf2 {[%clk 0:01:26.2]} 34... Rc1 {[%clk 0:00:36.2]} 35.
Rg2 {[%clk 0:01:26.2]} 35... Kh7 {[%clk 0:00:27.4]} 36. Qd7 {[%clk 0:01:18.4]}
36... Qb1 {[%clk 0:00:26.2]} 37. Rf2 {[%clk 0:01:03.2]} 37... Rh1+ {[%clk
0:00:25.5]} 38. Kg2 {[%clk 0:01:03.6]} 38... Qe4+ {[%clk 0:00:25]} 39. Rf3
{[%clk 0:01:03.6]} 39... Rc1 {[%clk 0:00:19.8]} 40. Bxf6 {[%clk 0:00:55.9]}
40... Rc2+ {[%clk 0:00:17.4]} 41. Kg1 {[%clk 0:00:55.2]} 41... Rc1+ {[%clk
0:00:14.6]} 42. Kg2 {[%clk 0:00:55]} 42... Rc2+ {[%clk 0:00:09.8]} 43. Kg1
{[%clk 0:00:54.7]} 43... Rc1+ {[%clk 0:00:07.3]} 44. Kg2 {[%clk 0:00:53.1]}
1/2-1/2

[Event "Late-Titled-Tuesday-Blitz-September-26-2023"]
[Site "Chess.com"]
[Date "2023.09.26"]
[Round "10"]
[White "RonArtest77"]
[Black "jk13"]
[Result "0-1"]
[WhiteElo "2502"]
[BlackElo "2626"]
[TimeControl "180+1"]
[EndTime "15:50:08 PDT"]
[Termination "jk13 won by checkmate"]

1. d4 {[%clk 0:02:59.3]} 1... Nf6 {[%clk 0:03:00.3]} 2. Bg5 {[%clk 0:02:58.8]}
2... Ne4 {[%clk 0:02:59.7]} 3. h4 {[%clk 0:02:58.7]} 3... Nc6 {[%clk 0:02:59.5]}
4. Nf3 {[%clk 0:02:51.4]} 4... d5 {[%clk 0:02:59.4]} 5. e3 {[%clk 0:02:45]} 5...
Bg4 {[%clk 0:02:56]} 6. Be2 {[%clk 0:02:42.2]} 6... h6 {[%clk 0:02:52.5]} 7. Bf4
{[%clk 0:02:41.8]} 7... e6 {[%clk 0:02:53.2]} 8. Nbd2 {[%clk 0:02:38.6]} 8...
Nxd2 {[%clk 0:02:49.9]} 9. Qxd2 {[%clk 0:02:16.7]} 9... Bd6 {[%clk 0:02:49.8]}
10. Bxd6 {[%clk 0:02:10.9]} 10... Qxd6 {[%clk 0:02:50.2]} 11. h5 {[%clk
0:02:11.5]} 11... a6 {[%clk 0:02:44.8]} 12. Rh4 {[%clk 0:01:50.4]} 12... Bf5
{[%clk 0:02:44.9]} 13. g4 {[%clk 0:01:50.9]} 13... Bh7 {[%clk 0:02:44.8]} 14. a3
{[%clk 0:01:50.3]} 14... O-O-O {[%clk 0:02:43.2]} 15. O-O-O {[%clk 0:01:47.7]}
15... e5 {[%clk 0:02:33]} 16. dxe5 {[%clk 0:01:44.3]} 16... Nxe5 {[%clk
0:02:33.9]} 17. Nxe5 {[%clk 0:01:43.4]} 17... Qxe5 {[%clk 0:02:34.8]} 18. Bd3
{[%clk 0:01:41.4]} 18... Be4 {[%clk 0:02:28.5]} 19. f4 {[%clk 0:01:13.8]} 19...
Qe7 {[%clk 0:02:28]} 20. Rh2 {[%clk 0:01:14.4]} 20... Rhe8 {[%clk 0:02:25.2]}
21. Re1 {[%clk 0:01:14.6]} 21... Qc5 {[%clk 0:02:16.1]} 22. Qb4 {[%clk
0:01:03.4]} 22... Qc6 {[%clk 0:02:07.8]} 23. Qd4 {[%clk 0:01:01.3]} 23... f6
{[%clk 0:02:08.2]} 24. Rd2 {[%clk 0:01:00]} 24... Rd6 {[%clk 0:02:06.4]} 25.
Red1 {[%clk 0:00:55.7]} 25... Kb8 {[%clk 0:02:05.3]} 26. c3 {[%clk 0:00:50]}
26... Re7 {[%clk 0:02:01]} 27. Rg1 {[%clk 0:00:48.5]} 27... Qd7 {[%clk
0:01:56.8]} 28. g5 {[%clk 0:00:44.8]} 28... fxg5 {[%clk 0:01:50.5]} 29. fxg5
{[%clk 0:00:45.7]} 29... Qe8 {[%clk 0:01:24.4]} 30. gxh6 {[%clk 0:00:42.8]}
30... gxh6 {[%clk 0:01:25.2]} 31. Kb1 {[%clk 0:00:20.5]} 31... Qxh5 {[%clk
0:01:19.6]} 32. Rg8+ {[%clk 0:00:20]} 32... Re8 {[%clk 0:01:20.2]} 33. Rxe8+
{[%clk 0:00:19.7]} 33... Qxe8 {[%clk 0:01:20.4]} 34. Ka2 {[%clk 0:00:17.4]}
34... h5 {[%clk 0:01:18.3]} 35. Rf2 {[%clk 0:00:15.3]} 35... a5 {[%clk
0:01:12.9]} 36. Qg7 {[%clk 0:00:13.5]} 36... Qe6 {[%clk 0:01:05.6]} 37. Rf8+
{[%clk 0:00:12]} 37... Ka7 {[%clk 0:01:06.1]} 38. Qd4+ {[%clk 0:00:12]} 38... b6
{[%clk 0:01:04.8]} 39. Be2 {[%clk 0:00:07.1]} 39... h4 {[%clk 0:00:55.4]} 40.
Qh8 {[%clk 0:00:07]} 40... d4+ {[%clk 0:00:55.8]} 41. Ka1 {[%clk 0:00:06.4]}
41... dxc3 {[%clk 0:00:51.4]} 42. Bb5 {[%clk 0:00:01.9]} 42... Rd1# {[%clk
0:00:48.4]} 0-1

[Event "Late-Titled-Tuesday-Blitz-September-26-2023"]
[Site "Chess.com"]
[Date "2023.09.26"]
[Round "10"]
[White "hansen"]
[Black "Rutricks"]
[Result "1-0"]
[WhiteElo "2908"]
[BlackElo "2684"]
[TimeControl "180+1"]
[EndTime "15:50:09 PDT"]
[Termination "hansen won by checkmate"]

1. e4 {[%clk 0:03:00.9]} 1... g6 {[%clk 0:03:00.9]} 2. d4 {[%clk 0:03:00.1]}
2... Bg7 {[%clk 0:03:01.8]} 3. Nc3 {[%clk 0:03:00.2]} 3... c6 {[%clk 0:03:02.7]}
4. f4 {[%clk 0:03:00.2]} 4... d5 {[%clk 0:03:03.6]} 5. e5 {[%clk 0:03:01]} 5...
f6 {[%clk 0:03:04.3]} 6. Be3 {[%clk 0:03:00.9]} 6... Nh6 {[%clk 0:03:04.8]} 7.
Be2 {[%clk 0:02:59]} 7... O-O {[%clk 0:03:05]} 8. Qd2 {[%clk 0:02:59.3]} 8...
fxe5 {[%clk 0:03:04.7]} 9. fxe5 {[%clk 0:02:48.8]} 9... Nf5 {[%clk 0:03:05]} 10.
Nf3 {[%clk 0:02:19.5]} 10... c5 {[%clk 0:02:51.3]} 11. dxc5 {[%clk 0:02:14]}
11... e6 {[%clk 0:02:52]} 12. Bg5 {[%clk 0:02:12.4]} 12... Qd7 {[%clk
0:02:43.1]} 13. O-O-O {[%clk 0:02:01.6]} 13... Na6 {[%clk 0:02:40.5]} 14. Bxa6
{[%clk 0:01:56.5]} 14... bxa6 {[%clk 0:02:40.8]} 15. g4 {[%clk 0:01:48.9]} 15...
Ne7 {[%clk 0:02:41]} 16. Bf6 {[%clk 0:01:49.2]} 16... Bxf6 {[%clk 0:02:35.6]}
17. exf6 {[%clk 0:01:49.8]} 17... Rxf6 {[%clk 0:02:36.5]} 18. Ne5 {[%clk
0:01:50.2]} 18... Qc7 {[%clk 0:02:36.8]} 19. Qd4 {[%clk 0:01:50.6]} 19... Rf8
{[%clk 0:02:28.3]} 20. Rhf1 {[%clk 0:01:37.1]} 20... Bb7 {[%clk 0:02:15]} 21. b4
{[%clk 0:01:37.2]} 21... Nc6 {[%clk 0:01:55.5]} 22. Nxc6 {[%clk 0:01:30.9]}
22... Bxc6 {[%clk 0:01:56.4]} 23. Rf6 {[%clk 0:01:24.5]} 23... Rae8 {[%clk
0:01:32.3]} 24. Rdf1 {[%clk 0:01:23.6]} 24... Rxf6 {[%clk 0:01:29.6]} 25. Qxf6
{[%clk 0:01:22.7]} 25... e5 {[%clk 0:01:30.3]} 26. a3 {[%clk 0:00:57.4]} 26...
d4 {[%clk 0:01:29.2]} 27. Ne2 {[%clk 0:00:34.9]} 27... Bb5 {[%clk 0:00:49.3]}
28. Rf2 {[%clk 0:00:35.1]} 28... d3 {[%clk 0:00:45.6]} 29. Nc3 {[%clk
0:00:30.1]} 29... e4 {[%clk 0:00:25.3]} 30. Nxe4 {[%clk 0:00:29.8]} 30... dxc2
{[%clk 0:00:19.9]} 31. Qd4 {[%clk 0:00:20.6]} 31... Qe5 {[%clk 0:00:06.6]} 32.
Nf6+ {[%clk 0:00:20.9]} 32... Kh8 {[%clk 0:00:07.5]} 33. Nxe8 {[%clk 0:00:21.2]}
33... Qxd4 {[%clk 0:00:07.8]} 34. Rf8# {[%clk 0:00:22.1]} 1-0

[Event "Late-Titled-Tuesday-Blitz-September-26-2023"]
[Site "Chess.com"]
[Date "2023.09.26"]
[Round "10"]
[White "aNaartjieZA"]
[Black "KamlaPasand"]
[Result "0-1"]
[WhiteElo "2584"]
[BlackElo "2451"]
[TimeControl "180+1"]
[EndTime "15:50:09 PDT"]
[Termination "KamlaPasand won by resignation"]

1. e4 {[%clk 0:03:00.9]} 1... e5 {[%clk 0:02:54.1]} 2. Nf3 {[%clk 0:03:00.7]}
2... Nc6 {[%clk 0:02:54.2]} 3. Bb5 {[%clk 0:03:00.8]} 3... a6 {[%clk 0:02:53.6]}
4. Ba4 {[%clk 0:03:00.8]} 4... Nf6 {[%clk 0:02:52.3]} 5. d3 {[%clk 0:03:01]}
5... b5 {[%clk 0:02:52]} 6. Bb3 {[%clk 0:03:00.9]} 6... d6 {[%clk 0:02:48.1]} 7.
c3 {[%clk 0:03:00.7]} 7... Be7 {[%clk 0:02:48.4]} 8. O-O {[%clk 0:02:59.8]} 8...
O-O {[%clk 0:02:48.7]} 9. Nbd2 {[%clk 0:03:00.2]} 9... Be6 {[%clk 0:02:41.2]}
10. Re1 {[%clk 0:02:57.9]} 10... h6 {[%clk 0:02:40.9]} 11. Nf1 {[%clk
0:02:57.9]} 11... Nh5 {[%clk 0:02:32.8]} 12. Ng3 {[%clk 0:02:50.6]} 12... Nxg3
{[%clk 0:02:32.3]} 13. hxg3 {[%clk 0:02:50.8]} 13... Bxb3 {[%clk 0:02:30.8]} 14.
axb3 {[%clk 0:02:50.5]} 14... f5 {[%clk 0:02:30.9]} 15. exf5 {[%clk 0:02:46.3]}
15... Rxf5 {[%clk 0:02:31.8]} 16. d4 {[%clk 0:02:46.3]} 16... exd4 {[%clk
0:02:29.6]} 17. Nxd4 {[%clk 0:02:46.2]} 17... Nxd4 {[%clk 0:02:29.4]} 18. Qxd4
{[%clk 0:02:46.3]} 18... Qf8 {[%clk 0:02:26.8]} 19. Be3 {[%clk 0:02:29.4]} 19...
d5 {[%clk 0:02:25.8]} 20. b4 {[%clk 0:02:26.6]} 20... Bd6 {[%clk 0:02:20.3]} 21.
Qg4 {[%clk 0:02:16.6]} 21... Re8 {[%clk 0:02:17.5]} 22. Bd4 {[%clk 0:02:15]}
22... Be5 {[%clk 0:02:12.2]} 23. Rad1 {[%clk 0:01:40]} 23... Bxd4 {[%clk
0:02:10.7]} 24. Qxd4 {[%clk 0:01:39.6]} 24... c6 {[%clk 0:02:04.2]} 25. Ra1
{[%clk 0:01:29.9]} 25... Rxe1+ {[%clk 0:02:02.8]} 26. Rxe1 {[%clk 0:01:29.3]}
26... Rf7 {[%clk 0:01:59.6]} 27. Re6 {[%clk 0:01:25.9]} 27... Qc8 {[%clk
0:01:59]} 28. Qe5 {[%clk 0:01:24.2]} 28... Kh7 {[%clk 0:01:57.6]} 29. g4 {[%clk
0:01:16.4]} 29... Ra7 {[%clk 0:01:49.3]} 30. g5 {[%clk 0:01:12.5]} 30... hxg5
{[%clk 0:01:47.3]} 31. Qf5+ {[%clk 0:01:09.6]} 31... Kg8 {[%clk 0:01:46.8]} 32.
Qg6 {[%clk 0:01:03.7]} 32... Rf7 {[%clk 0:01:45.2]} 33. Rxc6 {[%clk 0:00:58.7]}
33... Qe8 {[%clk 0:01:44.8]} 34. Re6 {[%clk 0:00:54.9]} 34... Qf8 {[%clk
0:01:42.7]} 35. f3 {[%clk 0:00:51.6]} 35... Qd8 {[%clk 0:01:39.4]} 36. Rd6
{[%clk 0:00:40.3]} 36... Qe8 {[%clk 0:01:38.2]} 37. Qe6 {[%clk 0:00:39.4]} 37...
Qxe6 {[%clk 0:01:33.1]} 38. Rxe6 {[%clk 0:00:39.1]} 38... Rf6 {[%clk 0:01:33.7]}
39. Rxf6 {[%clk 0:00:19.6]} 39... gxf6 {[%clk 0:01:33.5]} 40. Kf2 {[%clk
0:00:19.9]} 40... Kf7 {[%clk 0:01:34.1]} 41. Ke3 {[%clk 0:00:20.3]} 41... Ke6
{[%clk 0:01:34.7]} 42. Kd4 {[%clk 0:00:20.6]} 42... Kd6 {[%clk 0:01:35.2]} 43.
g3 {[%clk 0:00:20.6]} 43... f5 {[%clk 0:01:33.1]} 44. f4 {[%clk 0:00:20.1]}
44... g4 {[%clk 0:01:27.1]} 45. b3 {[%clk 0:00:20]} 45... Kc6 {[%clk 0:01:27.4]}
46. Ke5 {[%clk 0:00:20.2]} 46... Kb6 {[%clk 0:01:27.5]} 47. Kxf5 {[%clk
0:00:20.1]} 47... a5 {[%clk 0:01:27.1]} 48. Ke5 {[%clk 0:00:19.8]} 48... a4
{[%clk 0:01:26.9]} 49. bxa4 {[%clk 0:00:19.9]} 49... bxa4 {[%clk 0:01:26.9]} 50.
f5 {[%clk 0:00:20.4]} 50... a3 {[%clk 0:01:27.5]} 51. f6 {[%clk 0:00:20.9]}
51... a2 {[%clk 0:01:28.1]} 52. f7 {[%clk 0:00:21.3]} 52... a1=Q {[%clk
0:01:28.5]} 53. f8=Q {[%clk 0:00:21.8]} 53... Qxc3+ {[%clk 0:01:28.9]} 54. Kxd5
{[%clk 0:00:22.2]} 54... Qf3+ {[%clk 0:01:23.7]} 55. Qxf3 {[%clk 0:00:20.6]}
55... gxf3 {[%clk 0:01:24.6]} 56. g4 {[%clk 0:00:21.1]} 56... f2 {[%clk
0:01:25.3]} 57. g5 {[%clk 0:00:21.7]} 57... f1=Q {[%clk 0:01:25.7]} 58. g6
{[%clk 0:00:22.3]} 58... Qf6 {[%clk 0:01:25.5]} 0-1

[Event "Late-Titled-Tuesday-Blitz-September-26-2023"]
[Site "Chess.com"]
[Date "2023.09.26"]
[Round "10"]
[White "Mikhail_Bryakin"]
[Black "Berardino"]
[Result "1-0"]
[WhiteElo "2849"]
[BlackElo "2641"]
[TimeControl "180+1"]
[EndTime "15:50:13 PDT"]
[Termination "Mikhail_Bryakin won by resignation"]

1. e4 {[%clk 0:02:58.3]} 1... c5 {[%clk 0:02:59.8]} 2. d3 {[%clk 0:02:46.5]}
2... Nc6 {[%clk 0:02:57.7]} 3. g3 {[%clk 0:02:47]} 3... g6 {[%clk 0:02:57.5]} 4.
Bg2 {[%clk 0:02:47.6]} 4... Bg7 {[%clk 0:02:58.2]} 5. Nf3 {[%clk 0:02:48.2]}
5... d6 {[%clk 0:02:58.3]} 6. O-O {[%clk 0:02:48.8]} 6... e5 {[%clk 0:02:58.9]}
7. a4 {[%clk 0:02:47.7]} 7... Nge7 {[%clk 0:02:58.4]} 8. Na3 {[%clk 0:02:48.3]}
8... O-O {[%clk 0:02:58.1]} 9. Nc4 {[%clk 0:02:45.6]} 9... h6 {[%clk 0:02:58]}
10. c3 {[%clk 0:02:39.3]} 10... Be6 {[%clk 0:02:57.6]} 11. h3 {[%clk 0:02:33]}
11... f5 {[%clk 0:02:56.3]} 12. b3 {[%clk 0:02:31.1]} 12... f4 {[%clk
0:02:54.1]} 13. g4 {[%clk 0:02:25.2]} 13... g5 {[%clk 0:02:52.6]} 14. Nh2 {[%clk
0:02:21.7]} 14... Ng6 {[%clk 0:02:48.4]} 15. f3 {[%clk 0:02:17.2]} 15... Nh4
{[%clk 0:02:45.4]} 16. Qe2 {[%clk 0:02:15.9]} 16... h5 {[%clk 0:02:40.7]} 17.
gxh5 {[%clk 0:02:12.2]} 17... Bf7 {[%clk 0:02:36.5]} 18. Ng4 {[%clk 0:02:12]}
18... Bxh5 {[%clk 0:02:36.2]} 19. Bd2 {[%clk 0:02:12]} 19... Bf6 {[%clk
0:02:23.1]} 20. Be1 {[%clk 0:02:10.3]} 20... Ng6 {[%clk 0:02:21.1]} 21. Bf2
{[%clk 0:02:10.5]} 21... Kg7 {[%clk 0:02:17.3]} 22. Rfd1 {[%clk 0:01:54.5]}
22... Rh8 {[%clk 0:02:10.3]} 23. Kf1 {[%clk 0:01:53.7]} 23... Qe7 {[%clk
0:02:07.3]} 24. b4 {[%clk 0:01:41]} 24... b6 {[%clk 0:01:59]} 25. b5 {[%clk
0:01:40.2]} 25... Nd8 {[%clk 0:01:46.5]} 26. d4 {[%clk 0:01:40.1]} 26... Bxg4
{[%clk 0:01:45.1]} 27. hxg4 {[%clk 0:01:36]} 27... Nf7 {[%clk 0:01:36.1]} 28.
dxc5 {[%clk 0:01:35.7]} 28... bxc5 {[%clk 0:01:32.8]} 29. a5 {[%clk 0:01:34]}
29... Nh4 {[%clk 0:01:29.4]} 30. b6 {[%clk 0:01:31]} 30... Rh7 {[%clk
0:01:06.6]} 31. a6 {[%clk 0:01:08.9]} 31... Rah8 {[%clk 0:00:51.2]} 32. b7
{[%clk 0:01:05.7]} 32... Nxg2 {[%clk 0:00:46.1]} 33. Kxg2 {[%clk 0:01:04.7]}
33... Rh2+ {[%clk 0:00:45.8]} 34. Kf1 {[%clk 0:01:05.2]} 34... Qc7 {[%clk
0:00:34.5]} 35. Qd3 {[%clk 0:01:04.8]} 35... Qb8 {[%clk 0:00:24.5]} 36. Bg1
{[%clk 0:01:04.9]} 36... Rh1 {[%clk 0:00:18.8]} 37. Ra2 {[%clk 0:01:05.3]} 37...
R8h3 {[%clk 0:00:17.6]} 38. Rg2 {[%clk 0:01:05.1]} 38... Rg3 {[%clk 0:00:12.5]}
39. Rxg3 {[%clk 0:01:00.9]} 39... fxg3 {[%clk 0:00:13.2]} 40. Nxd6 {[%clk
0:01:01.7]} 40... Qh8 {[%clk 0:00:13]} 41. Nf5+ {[%clk 0:00:59.7]} 41... Kg6
{[%clk 0:00:12.7]} 42. Rd2 {[%clk 0:00:50.8]} 42... Qh3+ {[%clk 0:00:06.1]} 43.
Rg2 {[%clk 0:00:51.3]} 1-0

[Event "Late-Titled-Tuesday-Blitz-September-26-2023"]
[Site "Chess.com"]
[Date "2023.09.26"]
[Round "10"]
[White "snowlord"]
[Black "vova-79"]
[Result "1-0"]
[WhiteElo "2875"]
[BlackElo "2604"]
[TimeControl "180+1"]
[EndTime "15:50:16 PDT"]
[Termination "snowlord won by resignation"]

1. e4 {[%clk 0:03:00.9]} 1... c6 {[%clk 0:02:57.8]} 2. Nc3 {[%clk 0:02:56.5]}
2... d5 {[%clk 0:02:58.7]} 3. d3 {[%clk 0:02:56.3]} 3... dxe4 {[%clk 0:02:54.2]}
4. Nxe4 {[%clk 0:02:57]} 4... Bf5 {[%clk 0:02:50.9]} 5. h4 {[%clk 0:02:50.1]}
5... h6 {[%clk 0:02:48.1]} 6. g4 {[%clk 0:02:41.3]} 6... Bxe4 {[%clk 0:02:46.2]}
7. dxe4 {[%clk 0:02:41.5]} 7... Qxd1+ {[%clk 0:02:45.7]} 8. Kxd1 {[%clk
0:02:42]} 8... Nd7 {[%clk 0:02:42.1]} 9. a4 {[%clk 0:02:24.3]} 9... O-O-O {[%clk
0:02:38.9]} 10. Bd2 {[%clk 0:02:19.5]} 10... e6 {[%clk 0:02:17.8]} 11. f3 {[%clk
0:02:06.9]} 11... Bd6 {[%clk 0:02:07.2]} 12. Ke2 {[%clk 0:01:47.7]} 12... Be5
{[%clk 0:01:54.8]} 13. c3 {[%clk 0:01:21.2]} 13... Nc5 {[%clk 0:01:53.5]} 14.
Be3 {[%clk 0:01:21.5]} 14... Nd3 {[%clk 0:01:44.9]} 15. Rb1 {[%clk 0:01:21.4]}
15... Kc7 {[%clk 0:01:31.3]} 16. Nh3 {[%clk 0:01:18.9]} 16... b6 {[%clk
0:01:14.2]} 17. f4 {[%clk 0:01:17.2]} 17... Bf6 {[%clk 0:01:14.4]} 18. g5 {[%clk
0:01:11]} 18... Be7 {[%clk 0:01:12.4]} 19. b4 {[%clk 0:01:07.9]} 19... hxg5
{[%clk 0:01:09.6]} 20. hxg5 {[%clk 0:01:07.1]} 20... e5 {[%clk 0:01:04.6]} 21.
Bg2 {[%clk 0:00:43.9]} 21... exf4 {[%clk 0:00:53.9]} 22. Nxf4 {[%clk 0:00:44.8]}
22... Rxh1 {[%clk 0:00:52.6]} 23. Rxh1 {[%clk 0:00:45.7]} 23... Nxf4+ {[%clk
0:00:52.4]} 24. Bxf4+ {[%clk 0:00:46.2]} 24... Bd6 {[%clk 0:00:49.9]} 25. e5
{[%clk 0:00:35.3]} 25... Re8 {[%clk 0:00:49.5]} 26. Rh8 {[%clk 0:00:35.8]} 26...
f6 {[%clk 0:00:47.9]} 27. Rxg8 {[%clk 0:00:34.1]} 27... Rxg8 {[%clk 0:00:43.1]}
28. exd6+ {[%clk 0:00:34.6]} 28... Kd8 {[%clk 0:00:41.7]} 29. Bxc6 {[%clk
0:00:30.4]} 29... Rh8 {[%clk 0:00:37.6]} 30. gxf6 {[%clk 0:00:23.4]} 30... gxf6
{[%clk 0:00:37.6]} 31. Be3 {[%clk 0:00:24.3]} 31... Rh5 {[%clk 0:00:25.7]} 32.
Bd4 {[%clk 0:00:22.6]} 32... Rf5 {[%clk 0:00:24.2]} 33. a5 {[%clk 0:00:20.7]}
33... bxa5 {[%clk 0:00:21.4]} 34. Bxa7 {[%clk 0:00:21.6]} 34... Kc8 {[%clk
0:00:18.3]} 35. d7+ {[%clk 0:00:19.8]} 35... Kc7 {[%clk 0:00:17.4]} 36. Bb6+
{[%clk 0:00:20.4]} 36... Kxb6 {[%clk 0:00:17.8]} 37. d8=Q+ {[%clk 0:00:20.9]}
37... Kxc6 {[%clk 0:00:18.7]} 38. Qc8+ {[%clk 0:00:21.5]} 1-0